Cogmind - Beta 14 @@@ ROGUE MODE // 2024.12.01 @ 22:25:07 Player: WazdakkaGutsmek Result: Self-destructed Performance ------------- Evolutions (4) 2000 Regions Visited (13) 2600 Robots Destroyed (68) 340 Value Destroyed (1963) 1963 Prototype IDs (10) 200 Alien Tech Used (0) 0 Bonus (414) 414 TOTAL SCORE: 7517 Bonus ------- Follower Combat Kills 169 Met Data Miner 300 Friendly Fire -55 Cogmind --------- Core Integrity 678/850 Matter 300/300 Energy 92/100 System Corruption 2% Temperature Cool (28) Movement Core (150) Ox2 Location -6/Factory Parts ------- > --- POWER (2) -------- (None) > --- PROPULSION (3) --- (None) > --- UTILITY (7) ------ Hacking Suite > --- WEAPON (3) ------- Thermic Laser Thermic Laser > --- INVENTORY (5) ---- Micro Nuclear Core Armored Treads Armored Treads Powered Hammer Peak State ------------ > --- POWER ------------ Micro Nuclear Core Micro Nuclear Core > --- PROPULSION ------- Aluminum Leg Titanium Leg Titanium Leg > --- UTILITY ---------- Improved Heat Sink Target Analyzer Recoil Stabilizer Hacking Suite > --- WEAPON ----------- High-powered Shotgun Heavy Battle Rifle Flak Cannon > --- INVENTORY -------- Micro Nuclear Core EM Shotgun Rocket Launcher Powered Hammer [Rating: 38] Favorites ----------- Power Micro Nuclear Core Engine Improved Deuterium Engine Power Core Micro Nuclear Core Propulsion Light Treads Treads Light Treads Leg Titanium Leg Wheel Wheel Utility Improved Heat Sink Device Improved Heat Sink Storage Large Storage Unit Processor Target Analyzer Hackware Hacking Suite Protection Propulsion Shielding Weapon Ion Cannon Energy Gun EM Shotgun Energy Cannon Ion Cannon Ballistic Gun High-powered Shotgun Ballistic Cannon Flak Cannon Launcher Rocket Launcher Build | -11 -10 -10 -9 -9 -9 -8 -8 -7 -7 -7 -7 -6 -6 ------- Run | Yrd Mat Min Mat Min Exi Min Mat Fac Low Low Dat Pro Fac Slots Evolved 8 | . . . 2 . . . 2 2 . . . . 2 Power 1 | . . . . . . . . 1 . . . . . Propulsion 1 | . . . 1 . . . . . . . . . . Utility 5 | . . . 1 . . . 1 1 . . . . 2 Weapon 1 | . . . . . . . 1 . . . . . . Parts Attached 73 | . 7 3 11 17 1 6 15 4 4 . . 2 3 Power 13 | . 1 . 1 6 . 1 1 3 . . . . . Engine 9 | . 1 . 1 5 . 1 . 1 . . . . . Core 4 | . . . . 1 . . 1 2 . . . . . Reactor . | . . . . . . . . . . . . . . Propulsion 19 | . 2 . 3 5 1 2 5 . 1 . . . . Treads 11 | . 2 . 3 5 1 . . . . . . . . Leg 6 | . . . . . . . 5 . 1 . . . . Wheel 2 | . . . . . . 2 . . . . . . . Hover . | . . . . . . . . . . . . . . Flight . | . . . . . . . . . . . . . . Utility 15 | . 2 . 3 4 . 1 4 1 . . . . . Device 5 | . . . . 2 . . 3 . . . . . . Storage 1 | . 1 . . . . . . . . . . . . Processor 1 | . . . . . . . 1 . . . . . . Hackware 1 | . . . . . . . . 1 . . . . . Protection 7 | . 1 . 3 2 . 1 . . . . . . . Artifact . | . . . . . . . . . . . . . . Weapon 26 | . 2 3 4 2 . 2 5 . 3 . . 2 3 Energy Gun 9 | . 1 1 1 2 . . . . 1 . . . 3 Energy Cannon 8 | . . 1 3 . . 1 3 . . . . . . Ballistic Gun 5 | . 1 1 . . . 1 1 . 1 . . . . Ballistic Cannon 1 | . . . . . . . 1 . . . . . . Launcher 3 | . . . . . . . . . 1 . . 2 . Special Weapon . | . . . . . . . . . . . . . . Impact Weapon . | . . . . . . . . . . . . . . Slashing Weapon . | . . . . . . . . . . . . . . Piercing Weapon . | . . . . . . . . . . . . . . Special Melee Weapon . | . . . . . . . . . . . . . . Unidentified Prototypes 1 | . . . 1 . . . . . . . . . . Parts Lost 27 | . 2 . 1 5 . 5 2 . . . . 10 2 Power 8 | . 2 . . 3 . 1 . . . . . 2 . Propulsion 9 | . . . 1 2 . 3 . . . . . 3 . Utility 4 | . . . . . . 1 1 . . . . 1 1 Weapon 6 | . . . . . . . 1 . . . . 4 1 Highest Loss Streak 7 | . 1 . 1 2 . 2 2 . . . . 7 1 To Critical Strikes . | . . . . . . . . . . . . . . Average Slot Usage (%) 83 | . 83 85 87 99 100 76 75 84 92 92 92 79 21 Engine 5 | . 7 . 9 9 . . 4 . 7 7 7 6 . Core 3 | . . . . . 11 10 4 8 7 7 7 6 . Treads 13 | . 20 28 24 32 33 11 . . . . . . . Leg 9 | . 7 . . . . . 21 23 23 23 23 19 . Device 7 | . . . . 10 11 2 7 15 15 15 15 11 . Storage 7 | . 14 14 11 11 11 11 6 . . . . . . Processor 2 | . . . . . . . 5 7 7 7 7 7 2 Hackware 2 | . . . . . . . . 5 7 7 7 7 6 Protection 6 | . 5 14 20 11 11 6 1 . . . . . . Energy Gun 7 | . 8 14 1 10 22 7 . . 3 7 7 3 12 Energy Cannon 5 | . . 5 20 11 . 7 8 . . . . . . Ballistic Gun 7 | . 19 8 . . . 7 10 15 10 7 7 6 . Ballistic Cannon 2 | . . . . . . . 1 7 7 7 7 6 . Peak Build Rating 38 | . 7 8 19 22 21 21 29 38 38 38 38 38 22 Average Rating 21 | . 6 7 15 19 21 16 20 32 37 38 38 33 14 On Entrance 20 | 6 6 7 8 19 20 21 11 29 38 38 38 38 10 Naked Turns . | . . . . . . . . . . . . . . Heaviest Build 49 | 12 25 27 48 49 39 40 40 31 31 30 30 30 12 Greatest Support 60 | 20 40 40 60 60 60 60 44 44 49 49 49 49 3 Greatest Overweight (x) 3 | . . . 1 . . 3 3 . . . . . 3 Average Overweight (x) . | . . . . . . 1 . . . . . . . Largest Inventory Capacity 15 | . 15 15 15 15 15 15 15 5 5 5 5 5 5 Average Capacity 10 | . 9 15 15 15 15 15 12 5 5 5 5 5 5 Most Carried 15 | . 6 9 14 15 14 14 6 5 5 5 5 5 4 Average Carried 7 | . 4 7 11 14 14 9 4 4 4 5 5 4 4 Final Capacity 15 | 8 15 15 15 15 15 15 5 5 5 5 5 5 5 Final Carried 15 | 6 4 9 13 15 14 5 5 5 5 5 5 4 4 Class Distribution -------------------- 40% | Mutant 33% | Gunner 25% | Scavenger-Mutant Dominant Class ---------------- Mutant | -10/Materials Mutant | -10/Mines Mutant | -9/Materials Scavenger-Mutant | -9/Mines Scavenger-Mutant | -9/Exiles Mutant | -8/Mines Mutant | -8/Materials Gunner | -7/Factory Gunner | -7/Lower Caves Gunner | -7/Lower Caves Gunner | -7/Data Miner Gunner | -6/Proximity Caves Gunner | -6/Factory Resources | -11 -10 -10 -9 -9 -9 -8 -8 -7 -7 -7 -7 -6 -6 ----------- Run | Yrd Mat Min Mat Min Exi Min Mat Fac Low Low Dat Pro Fac Matter Collected 1666 | 200 236 81 95 172 . 240 193 . 306 4 . 101 38 Remotely . | . . . . . . . . . . . . . . Salvage Created 2248 | . 389 68 274 391 . 255 387 42 264 . . 104 74 Parts 132 | . 29 10 17 23 . 15 17 3 11 . . 7 . Haulers Intercepted 2 | . . . 1 . . . 1 . . . . . . Recyclers Shooed 1 | . . . . . . . 1 . . . . . . Parts Field Recycled . | . . . . . . . . . . . . . . Retrieved Matter . | . . . . . . . . . . . . . . Parts Self-Destructed 20 | . . . . . . . . . 10 . . 10 . Prevented 1 | . . . . . . . . . 1 . . . . Kills | -11 -10 -10 -9 -9 -9 -8 -8 -7 -7 -7 -7 -6 -6 ------- Run | Yrd Mat Min Mat Min Exi Min Mat Fac Low Low Dat Pro Fac Combat Hostiles Destroyed 71 | . 10 5 4 21 . 12 5 1 7 . . 5 1 Melee 3 | . . . . 2 . 1 . . . . . . . Guns 34 | . 10 5 . 8 . 3 4 1 2 . . 1 . Cannons 28 | . . . 4 10 . 8 1 . 3 . . 2 . AOE 4 | . . . . . . . . . 2 . . 2 . Classes Destroyed 12 | . 5 . 3 1 . 2 . . . . . 1 . Worker 3 | . 1 . . 2 . . . . . . . . . Tunneler 1 | . . . . . . 1 . . . . . . . Hauler 2 | . . . 1 . . . 1 . . . . . . Recycler 3 | . . . 1 1 . . 1 . . . . . . Operator 1 | . 1 . . . . . . . . . . . . Watcher 1 | . 1 . . . . . . . . . . . . Swarmer 21 | . 3 5 1 2 . 9 . . . . . 1 . Grunt 27 | . 7 . 1 3 . 2 5 . 6 . . 3 . Brawler 2 | . . . . . . 1 . . 1 . . . . Sentry 6 | . . . 2 2 . . . 1 . . . . 1 Programmer 1 | . . . . . . . . . . . . 1 . Assembled 14 | . . . . 14 . . . . . . . . . Best Kill Streak 7 | . 3 5 3 5 . 7 2 1 3 . . 3 1 Combat Bots Only 6 | . 3 5 2 5 . 6 2 1 3 . . 3 1 Max Kills in Single Turn 2 | . 2 1 1 1 . 1 1 1 1 . . 2 1 Gunslinging 1 | . 1 . . . . . . . . . . . . Exploded 1 | . . . . . . . . . 1 . . 1 . Melee 1 | . . . . 1 . 1 . . . . . . . Uniques/NPCs Destroyed . | . . . . . . . . . . . . . . Combat | -11 -10 -10 -9 -9 -9 -8 -8 -7 -7 -7 -7 -6 -6 -------- Run | Yrd Mat Min Mat Min Exi Min Mat Fac Low Low Dat Pro Fac Hostile Shots Fired 471 | . 83 16 16 89 . 63 37 18 18 . . 83 48 Missed 146 | . 20 4 5 24 . 18 13 9 6 . . 24 23 Damage Taken 4891 | . 742 109 144 1062 . 582 410 63 187 . . 1254 338 Core 987 | . 80 27 12 109 . 126 54 5 16 . . 386 172 Absorbed by Shields . | . . . . . . . . . . . . . . Redirected to Shielding 51 | . . 13 27 11 . . . . . . . . . Core Remaining (%) 65 | 100 . 57 . . . 38 90 . . . . 41 . Volleys Fired 230 | . 63 9 19 50 . 34 24 2 14 . . 9 6 Largest 3 | . 2 2 2 2 . 2 3 3 3 . . 3 3 Hottest 255 | . 85 85 120 140 . 140 153 102 114 . . 114 255 Shots Fired 462 | . 124 18 36 95 . 64 51 6 35 . . 24 9 Gun 305 | . 124 18 . 52 . 42 24 4 21 . . 11 9 Cannon 150 | . . . 36 43 . 22 27 2 11 . . 9 . Launcher 7 | . . . . . . . . . 3 . . 4 . Special . | . . . . . . . . . . . . . . Kinetic 208 | . 102 9 . . . 20 24 6 29 . . 18 . Thermal 235 | . 22 9 36 95 . 44 20 . . . . . 9 Explosive 7 | . . . . . . . . . 3 . . 4 . Electromagnetic 12 | . . . . . . . 7 . 3 . . 2 . Robot Hit Streak 18 | . 12 4 4 8 . 18 14 7 10 . . 8 7 Robot Miss Streak 11 | . 5 3 7 8 . 8 2 1 8 . . 10 11 Penetration Max . | . . . . . . . . . . . . . . Secondary Targets 6 | . 3 1 . 1 . 1 . . . . . . . Max Gunslinging Chain 1 | . 1 1 . 1 . 1 . . . . . . . Shots Hit Robots 279 | . 72 9 14 64 . 29 39 5 27 . . 13 7 Core Hits 183 | . 30 6 8 57 . 25 11 6 19 . . 19 2 Critical Kills 2 | . . . . 1 . . . . 1 . . . . Critical Parts Destroyed 2 | . . . . . . . 2 . . . . . . Critical Strikes 8 | . 1 . . 1 . . 3 . 1 . . . 2 Burn 3 | . 1 . . . . . . . . . . . 2 Meltdown 1 | . . . . 1 . . . . . . . . . Destroy 3 | . . . . . . . 2 . 1 . . . . Corrupt 1 | . . . . . . . 1 . . . . . . Melee Attacks . | . . . . . . . . . . . . . . Impact . | . . . . . . . . . . . . . . Slashing . | . . . . . . . . . . . . . . Piercing . | . . . . . . . . . . . . . . Sneak Attacks . | . . . . . . . . . . . . . . Combat Hostiles . | . . . . . . . . . . . . . . Follow-up Attacks . | . . . . . . . . . . . . . . Damage Inflicted 5592 | . 872 107 367 1192 . 592 880 110 714 . . 630 128 Guns 2849 | . 855 104 . 539 . 331 415 78 289 . . 112 126 Cannons 1991 | . . . 357 606 . 255 454 32 170 . . 117 . Explosions 649 | . . . . . . . . . 255 . . 394 . Melee . | . . . . . . . . . . . . . . Ramming 103 | . 17 3 10 47 . 6 11 . . . . 7 2 Kinetic 1948 | . 667 33 . . . 82 415 110 412 . . 229 . Thermal 2716 | . 188 71 357 1145 . 504 325 . . . . . 126 Explosive 649 | . . . . . . . . . 255 . . 394 . Electromagnetic 176 | . . . . . . . 129 . 47 . . . . Impact . | . . . . . . . . . . . . . . Slashing . | . . . . . . . . . . . . . . Piercing . | . . . . . . . . . . . . . . Highest Corruption 4 | . . . . 4 4 4 . . . . . . 2 Average Corruption 3 | . . . . 4 4 4 . . . . . . 2 Corruption Purged . | . . . . . . . . . . . . . . Corruption Blocked . | . . . . . . . . . . . . . . Effects 36 | . . . . 16 5 11 . . . . . . 4 Message Errors 6 | . . . . 3 1 2 . . . . . . . Matter Fused 5 | . . . . . 1 2 . . . . . . 2 Heat Flow Errors 8 | . . . . 4 1 1 . . . . . . 2 Energy Discharges 5 | . . . . 4 1 . . . . . . . . Parts Rejected 1 | . . . . 1 . . . . . . . . . Data Loss (minor) 2 | . . . . . 1 1 . . . . . . . Misfires 2 | . . . . 1 . 1 . . . . . . . Alerts 1 | . . . . 1 . . . . . . . . . Weapon Failures 6 | . . . . 2 . 4 . . . . . . . Overload Shots . | . . . . . . . . . . . . . . Overflow Damage 21 | . . . . 6 . 3 11 . . . . 1 . Projectiles 21 | . . . . 6 . 3 11 . . . . 1 . Explosions . | . . . . . . . . . . . . . . Melee . | . . . . . . . . . . . . . . Knockbacks 10 | . . . . 1 . . . . 3 . . 6 . Impact 1 | . . . . 1 . . . . . . . . . Kinetic 8 | . . . . . . . . . 3 . . 5 . Secondary 1 | . . . . . . . . . . . . 1 . Self-Inflicted Damage 35 | . . . . . . . . . . . . 34 1 Shots 1 | . . . . . . . . . . . . 1 . Rammed 13 | . 1 1 3 6 . . . . . . . 1 1 Targets Rammed 23 | . 2 1 3 9 . 1 3 . . . . 3 1 Kicked 6 | . 1 . . . . . 3 . . . . 2 . Crushed 4 | . . . . 3 . 1 . . . . . . . Highest Temperature 811 | . 109 104 171 386 150 811 104 6 63 . . 292 222 Average Temperature 108 | . 39 44 57 113 80 222 33 6 29 . . 68 111 Received Heat Transfer 1726 | . 402 . 33 120 . 99 252 18 108 . . 607 87 Effects 26 | . . . . 6 . 20 . . . . . . . Shutdowns 4 | . . . . . . 4 . . . . . . . Interference 8 | . . . . 5 . 3 . . . . . . . Matter Decay 3 | . . . . . . 3 . . . . . . . Short Circuit 2 | . . . . . . 2 . . . . . . . Damage (minor) 4 | . . . . 1 . 3 . . . . . . . Damage (major) 3 | . . . . . . 3 . . . . . . . Damage (core) 2 | . . . . . . 2 . . . . . . . Siege Activations . | . . . . . . . . . . . . . . Robots Corrupted . | . . . . . . . . . . . . . . Combat Hostiles . | . . . . . . . . . . . . . . Parts Fried . | . . . . . . . . . . . . . . Impact Corruptions . | . . . . . . . . . . . . . . Robots Melted 2 | . . . . 1 . . . . . . . . 1 Combat Hostiles 2 | . . . . 1 . . . . . . . . 1 Parts Melted 9 | . 4 . 1 . . 1 . . . . . . 3 Heat Transferred 4961 | . 629 185 592 1732 . 755 518 . . . . . 550 Parts Sabotaged . | . . . . . . . . . . . . . . Parts Stolen . | . . . . . . . . . . . . . . Parts Stripped . | . . . . . . . . . . . . . . Power Chain Reactions . | . . . . . . . . . . . . . . Alert | -11 -10 -10 -9 -9 -9 -8 -8 -7 -7 -7 -7 -6 -6 ------- Run | Yrd Mat Min Mat Min Exi Min Mat Fac Low Low Dat Pro Fac Peak Influence 351 | . 290 202 227 203 . 351 243 71 . . . . 60 Initial 136 | . . 67 . 88 . . 136 18 . . . . 18 Average 109 | . 144 152 118 69 . 152 135 16 . . . . 45 Maximum Alert Level 1 | . 1 1 1 1 . 1 1 . . . . . . Low Security (%) 77 | . 85 27 78 94 . 61 66 100 . . . . 100 Level 1 22 | . 14 72 21 5 . 38 33 . . . . . . Level 2 . | . . . . . . . . . . . . . . Level 3 . | . . . . . . . . . . . . . . Level 4 . | . . . . . . . . . . . . . . Level 5 . | . . . . . . . . . . . . . . High Security . | . . . . . . . . . . . . . . Max Security . | . . . . . . . . . . . . . . Squads Dispatched 7 | . 2 1 . . . . . 1 . . . 1 2 Investigation 1 | . 1 . . . . . . . . . . . . Extermination 1 | . . . . . . . . . . . . . 1 Reinforcement 3 | . 1 . . . . . . 1 . . . . 1 Assault 2 | . . 1 . . . . . . . . . 1 . Garrison . | . . . . . . . . . . . . . . Intercept . | . . . . . . . . . . . . . . Searches Triggered . | . . . . . . . . . . . . . . Construction Impeded . | . . . . . . . . . . . . . . Haulers Reinforced . | . . . . . . . . . . . . . . Active Scanning Responses . | . . . . . . . . . . . . . . Cargo Convoy Interrupts . | . . . . . . . . . . . . . . Stealth | -11 -10 -10 -9 -9 -9 -8 -8 -7 -7 -7 -7 -6 -6 --------- Run | Yrd Mat Min Mat Min Exi Min Mat Fac Low Low Dat Pro Fac Distress Signals 2 | . 1 . . . . . . 1 . . . . . Communications Jammed . | . . . . . . . . . . . . . . Distress Signals . | . . . . . . . . . . . . . . Times Spotted 141 | . 25 10 10 29 . 18 6 4 12 . . 22 5 Peak Tracking Total 13 | . 4 4 2 10 . 4 3 3 4 . . 13 4 Tactical Retreats 12 | . 1 . . 3 . 3 . . 4 . . 1 . Traps | -11 -10 -10 -9 -9 -9 -8 -8 -7 -7 -7 -7 -6 -6 ------- Run | Yrd Mat Min Mat Min Exi Min Mat Fac Low Low Dat Pro Fac Traps Triggered 3 | . 1 . . . . . . . . . . . 2 Indirectly . | . . . . . . . . . . . . . . Trap Hack Attempts . | . . . . . . . . . . . . . . Triggered . | . . . . . . . . . . . . . . Disarmed . | . . . . . . . . . . . . . . Reprogrammed . | . . . . . . . . . . . . . . Reused . | . . . . . . . . . . . . . . Traps Extracted . | . . . . . . . . . . . . . . Installed . | . . . . . . . . . . . . . . Triggered . | . . . . . . . . . . . . . . Most Traps Carried 3 | . . 3 3 3 3 3 3 3 . . . . . Machines | -11 -10 -10 -9 -9 -9 -8 -8 -7 -7 -7 -7 -6 -6 ---------- Run | Yrd Mat Min Mat Min Exi Min Mat Fac Low Low Dat Pro Fac Machines Disabled 3 | . . . 3 . . . . . . . . . . Max in Single Turn 1 | . . . 1 . . . . . . . . . . Machines Repaired . | . . . . . . . . . . . . . . Machines Dismantled . | . . . . . . . . . . . . . . Machines Sabotaged . | . . . . . . . . . . . . . . Overloaded Fab Kills . | . . . . . . . . . . . . . . Hacking | -11 -10 -10 -9 -9 -9 -8 -8 -7 -7 -7 -7 -6 -6 --------- Run | Yrd Mat Min Mat Min Exi Min Mat Fac Low Low Dat Pro Fac Machines Accessed 8 | . 2 . . . . . . 2 . . 3 . 1 Terminals 5 | . 2 . . . . . . 2 . . . . 1 Fabricators . | . . . . . . . . . . . . . . Repair Stations . | . . . . . . . . . . . . . . Recycling Units . | . . . . . . . . . . . . . . Scanalyzers . | . . . . . . . . . . . . . . Garrison Access . | . . . . . . . . . . . . . . Total Hacks 37 | . 4 . . . . . . 7 . . 23 . 3 Successful 30 | . 1 . . . . . . 4 . . 23 . 2 Failed 7 | . 3 . . . . . . 3 . . . . 1 Catastrophic 1 | . 1 . . . . . . . . . . . . Database Lockouts . | . . . . . . . . . . . . . . Manual 12 | . 3 . . . . . . 6 . . . . 3 Terminals 14 | . 4 . . . . . . 7 . . . . 3 Fabricators . | . . . . . . . . . . . . . . Repair Stations . | . . . . . . . . . . . . . . Recycling Units . | . . . . . . . . . . . . . . Scanalyzers . | . . . . . . . . . . . . . . Garrison Access . | . . . . . . . . . . . . . . Terminal Hacks 27 | . 1 . . . . . . 2 . . 23 . 1 Record 6 | . . . . . . . . . . . 6 . . Part Schematic 8 | . . . . . . . . . . . 8 . . Robot Schematic 6 | . . . . . . . . . . . 6 . . Prototype ID Bank 3 | . . . . . . . . . . . 3 . . Level Access Points 1 | . 1 . . . . . . . . . . . . Branch Access Points 2 | . . . . . . . . 1 . . . . 1 Unreport Threat 1 | . . . . . . . . 1 . . . . . Fabricator Hacks . | . . . . . . . . . . . . . . Repair Station Hacks . | . . . . . . . . . . . . . . Recycling Unit Hacks . | . . . . . . . . . . . . . . Scanalyzer . | . . . . . . . . . . . . . . Garrison Access Hacks . | . . . . . . . . . . . . . . Unauthorized Hacks 3 | . . . . . . . . 2 . . . . 1 Terminals 3 | . . . . . . . . 2 . . . . 1 Botnet 3 | . . . . . . . . 2 . . . . 1 Fabricators . | . . . . . . . . . . . . . . Repair Stations . | . . . . . . . . . . . . . . Recycling Units . | . . . . . . . . . . . . . . Scanalyzers . | . . . . . . . . . . . . . . Garrison Access . | . . . . . . . . . . . . . . Data Cores Recovered . | . . . . . . . . . . . . . . Used . | . . . . . . . . . . . . . . Hacking Detections 3 | . 1 . . . . . . 1 . . . . 1 Full Trace Events 1 | . 1 . . . . . . . . . . . . Feedback Events . | . . . . . . . . . . . . . . Feedback Blocked . | . . . . . . . . . . . . . . Robot Schematics Acquired 6 | . . . . . . . . . . . 6 . . Robots Built . | . . . . . . . . . . . . . . Authchips . | . . . . . . . . . . . . . . Time . | . . . . . . . . . . . . . . Total Robot Build Rating . | . . . . . . . . . . . . . . Part Schematics Acquired 8 | . . . . . . . . . . . 8 . . Parts Built . | . . . . . . . . . . . . . . Authchips . | . . . . . . . . . . . . . . Time . | . . . . . . . . . . . . . . Total Part Build Rating . | . . . . . . . . . . . . . . Parts Repaired . | . . . . . . . . . . . . . . Time . | . . . . . . . . . . . . . . Parts Recycled . | . . . . . . . . . . . . . . Recycled Matter . | . . . . . . . . . . . . . . Retrieved Matter . | . . . . . . . . . . . . . . Retrieved Components . | . . . . . . . . . . . . . . Parts Scanalyzed . | . . . . . . . . . . . . . . Part Schematics Acquired . | . . . . . . . . . . . . . . Parts Damaged . | . . . . . . . . . . . . . . Bothacking | -11 -10 -10 -9 -9 -9 -8 -8 -7 -7 -7 -7 -6 -6 ------------ Run | Yrd Mat Min Mat Min Exi Min Mat Fac Low Low Dat Pro Fac Used RIF Installer . | . . . . . . . . . . . . . . Robots Hacked . | . . . . . . . . . . . . . . Non-combat . | . . . . . . . . . . . . . . Combat . | . . . . . . . . . . . . . . Robot Hacks Applied . | . . . . . . . . . . . . . . Relay Couplers Released . | . . . . . . . . . . . . . . Fabnet Peak Effective % . | . . . . . . . . . . . . . . Robots Rewired . | . . . . . . . . . . . . . . Allies Hacked . | . . . . . . . . . . . . . . Hacks Repelled . | . . . . . . . . . . . . . . Allies | -11 -10 -10 -9 -9 -9 -8 -8 -7 -7 -7 -7 -6 -6 -------- Run | Yrd Mat Min Mat Min Exi Min Mat Fac Low Low Dat Pro Fac Total Allies 4 | . . 2 . 2 . . . . . . . . . Largest Group 2 | . . 2 2 2 . . . . . . . . . Highest-Rated Group 62 | . . 62 62 62 . . . . . . . . . Highest-Rated Ally 31 | . . 31 31 31 . . . . . . . . . Total Orders . | . . . . . . . . . . . . . . Ally Attacks 46 | . . 1 24 21 . . . . . . . . . Total Damage 667 | . . 22 412 233 . . . . . . . . . Kills 10 | . . . 7 3 . . . . . . . . . Allies Corrupted . | . . . . . . . . . . . . . . Allies Melted . | . . . . . . . . . . . . . . Intel | -11 -10 -10 -9 -9 -9 -8 -8 -7 -7 -7 -7 -6 -6 ------- Run | Yrd Mat Min Mat Min Exi Min Mat Fac Low Low Dat Pro Fac Robot Analysis Total . | . . . . . . . . . . . . . . Derelict Logs Recovered 4 | . . 2 . . . . . . 1 1 . . . Drone Launches . | . . . . . . . . . . . . . . Drone Recoveries . | . . . . . . . . . . . . . . Exploration | -11 -10 -10 -9 -9 -9 -8 -8 -7 -7 -7 -7 -6 -6 ------------- Run | Yrd Mat Min Mat Min Exi Min Mat Fac Low Low Dat Pro Fac Turns Passed 6459 | . 760 519 565 1030 222 327 602 239 901 269 94 589 342 Spaces Moved 3836 | 1 375 286 244 503 139 152 350 177 667 214 75 321 332 Core 377 | . . . . . . . . . . . . 45 332 Treads 1446 | . 259 286 244 503 139 15 . . . . . . . Legs 1800 | 1 116 . . . . . 274 177 667 214 75 276 . Wheels 213 | . . . . . . 137 76 . . . . . . Hover . | . . . . . . . . . . . . . . Flight . | . . . . . . . . . . . . . . Fastest Speed 50 | 120 120 160 160 160 160 95 123 126 126 126 126 50 50 Average Speed 137 | 120 147 160 198 160 160 104 135 126 126 126 126 117 94 Slowest Speed 330 | 120 160 160 240 160 160 160 330 126 126 126 126 130 200 Overloaded Moves . | . . . . . . . . . . . . . . Propulsion Burnouts . | . . . . . . . . . . . . . . Robots Hopped . | . . . . . . . . . . . . . . Cave-ins Triggered . | . . . . . . . . . . . . . . Exploration Rate (%) 42 | 2 75 62 25 69 52 36 24 3 77 44 68 46 10 Regions Visited 13 Branch Regions 8 Pre-discovered Areas 2 | . . 1 . . . . . . . . 1 . . Known Exits Taken 3 | . . 1 . . . . . 1 1 . . . . Unknown Exits Taken 10 | 1 1 . 1 1 1 1 1 . . 1 1 1 . Scrap Searched 4 | . . 1 . 1 . . . . 1 1 . . . Spaces Dug . | . . . . . . . . . . . . . . Terrain Destroyed 81 | . . . 6 7 . 11 4 . 20 . . 33 . Melee . | . . . . . . . . . . . . . . Projectile 28 | . . . 6 7 . 11 4 . . . . . . AOE 53 | . . . . . . . . . 20 . . 33 . Terrain Rammed . | . . . . . . . . . . . . . . Walls Destroyed . | . . . . . . . . . . . . . . Machines Disabled . | . . . . . . . . . . . . . . Actions | -11 -10 -10 -9 -9 -9 -8 -8 -7 -7 -7 -7 -6 -6 --------- Run | Yrd Mat Min Mat Min Exi Min Mat Fac Low Low Dat Pro Fac Total 4560 | . 465 329 283 624 139 256 426 188 700 213 74 513 350 Wait 364 | . 16 27 1 41 . 56 27 . 11 . . 178 7 Move 3823 | . 374 285 243 502 138 151 349 176 666 213 74 320 332 Hop . | . . . . . . . . . . . . . . Pick Up 13 | . . 4 3 1 . . 1 2 2 . . . . Fast Attach 26 | . 2 . 5 2 . 1 10 3 . . . . 3 Attach 16 | . 3 . . 3 1 5 1 . 1 . . 2 . Detach 1 | . . . . . . . . . . . . 1 . Swap 31 | . 2 3 6 12 . . 4 1 3 . . . . Drop 33 | . 3 . 3 4 . 8 7 4 3 . . . 1 Fire 230 | . 63 9 19 50 . 34 24 2 14 . . 9 6 Melee . | . . . . . . . . . . . . . . Ram 2 | . . . . . . . . . . . . 1 1 Kick 6 | . 1 . . . . . 3 . . . . 2 . Crush 15 | . 1 1 3 9 . 1 . . . . . . . Escape Stasis . | . . . . . . . . . . . . . . Rewire . | . . . . . . . . . . . . . . Trap . | . . . . . . . . . . . . . . Miscellaneous . | . . . . . . . . . . . . . . Route ------- -11/Scrapyard -10/Materials (discovered 5 exits: *Mat x3 / [*Min x2]) -10/Mines (discovered 2 exits: *Mat x2) -9/Materials (discovered 2 exits: [*Mat] / *Min) -9/Mines (discovered 2 exits: [*Mat] / [*Exi]) -9/Exiles -8/Mines -8/Materials -7/Factory (discovered 2 exits: *Low x2) -7/Lower Caves -7/Lower Caves -7/Data Miner -6/Proximity Caves -6/Factory (discovered 2 exits: Low x2) History --------- Turn | Location | Event 1 | -11/Scrapyard | Discovered new exit (range 0) 1 | -11/Scrapyard | Entered Materials 143 | -10/Materials | Identified exit to Materials 314 | -10/Materials | Build established: Mutant 509 | -10/Materials | Discovered new exit (range 14) 736 | -10/Materials | Discovered new exit (range 6) 761 | -10/Materials | Entered Mines 767 | -10/Mines | Met a Derelict bent on vengeance 771 | -10/Mines | Discovered exit to Materials (range 10) 818 | -10/Mines | Escorted by a lone wolf Derelict 954 | -10/Mines | Found a hidden stash of uninstalled traps 1008 | -10/Mines | Learned location of Recycling (-9) 1101 | -10/Mines | A weapon hastily lodged in a ceiling crevice suddenly fell to the ground 1253 | -10/Mines | Met a Derelict testing a Signal Generator 1280 | -10/Mines | Entered Materials 1280 | -9/Materials | Accompanied by 2 allies 1280 | -9/Materials | Evolved 2 slots: Propulsion x1, Utility x1 1704 | -9/Materials | Discovered new exit (range 15) 1818 | -9/Materials | Discovered new exit (range 6) 1845 | -9/Materials | Entered Mines 1845 | -9/Mines | Accompanied by 2 allies 1989 | -9/Mines | Build established: Scavenger-Mutant 2059 | -9/Mines | Assembled infested the area 2064 | -9/Mines | Assisted by a Guerilla fighting off Assembled 2307 | -9/Mines | Discovered new exit (range 10) 2869 | -9/Mines | Deemed a non-threat by the Exiles lab entrance 2869 | -9/Mines | Discovered new exit (range 5) 2875 | -9/Mines | Entered Exiles 2915 | -9/Exiles | Met 8R-AWN 2942 | -9/Exiles | Met EX-HEX 2987 | -9/Exiles | Met EX-BIN 3012 | -9/Exiles | Met EX-DEC 3083 | -9/Exiles | Discovered new exit (range 10) 3097 | -9/Exiles | Entered Mines 3173 | -8/Mines | Core integrity fell below 50% 3352 | -8/Mines | Discovered new exit (range 15) 3424 | -8/Mines | Entered Materials 3424 | -8/Materials | Evolved 2 slots: Utility x1, Weapon x1 3518 | -8/Materials | Build established: Mutant 3963 | -8/Materials | Discovered new exit (range 16) 4026 | -8/Materials | Entered Factory 4026 | -7/Factory | Evolved 2 slots: Power x1, Utility x1 4034 | -7/Factory | Identified exit to Lower Caves 4232 | -7/Factory | Build established: Gunner 4265 | -7/Factory | Entered Lower Caves 4384 | -7/Lower Caves | Identified exit to Lower Caves 4508 | -7/Lower Caves | Encountered a Warlord checkpoint 5166 | -7/Lower Caves | Entered another Lower Caves area 5220 | -7/Lower Caves | Encountered a Warlord checkpoint 5299 | -7/Lower Caves | Learned Factory terminal intel 5422 | -7/Lower Caves | Discovered new exit (range 9) 5435 | -7/Lower Caves | Entered Data Miner 5435 | -7/Data Miner | Discovered new exit (range 7) 5459 | -7/Data Miner | Met Data Miner 5483 | -7/Data Miner | Learned location of Section 7 (-3) 5483 | -7/Data Miner | Acquired the access code to Warlord's prototype stash 5501 | -7/Data Miner | Received God Mode back door access code from Data Miner 5529 | -7/Data Miner | Entered Proximity Caves 5674 | -6/Proximity Caves | Received a Behemoth hack from an annoying Tinkerer 5891 | -6/Proximity Caves | Lost 3 parts (1n1u1w) 6047 | -6/Proximity Caves | Attracted the attention of an 0b10 outpost 6069 | -6/Proximity Caves | Spotted B-75 Beast 6097 | -6/Proximity Caves | Core integrity fell below 50% 6117 | -6/Proximity Caves | Discovered new exit (range 3) 6118 | -6/Proximity Caves | Entered Factory 6118 | -6/Factory | Evolved 2 slots: Utility x2 6119 | -6/Factory | Loaded intel: 26 terminal locations 6125 | -6/Factory | Lost 7 parts (2p2n3w) 6158 | -6/Factory | Build established: Mutant 6201 | -6/Factory | Identified exit to Lower Caves 6460 | -6/Factory | Self-destructed Last Messages --------------- 06257_ Y-54 Guardian suffers critical hit (Burn). 06261_ Y-54 Guardian heat damages core (-13). 06261_ Imp. Light Armor Plating melted. 06261_ Lgt. Treads melted. 06261_ Flak Gun melted. 06284_ Acquired 33 matter. 06359_ System corrupted: Matter fused (-5). 06368_ ALERT: Rogue bot located, Programmers report to Factory Zone 6B. 06374_ Acquired 5 matter. 06396_ Slammed into K-01 Serf. 06403_ O-24 Administrator: "IFF HANDSHAKE FAILED. SECURING TERMINAL." 06406_ ALERT: Hostiles spotted, dispatching reinforcements to Terminal F018. 06439_ System corrupted: Heat flow error (+198). 06442_ K-01 Serf cleans the Manufacturing Mainframe. 06460_ Thermic Laser destroyed. Map ----- +----------------------------------------------------+ | ???????????????????????????????????>?????????????? | | ?????????????????????????????????????????????????? | | ?????????????????????????????????????????????????? | | ?????????????????????????????????????????????????? | | ?????????????????????????????????????????????????? | | ?????????????????????????????????????????????????? | | ?????????????????????????????????????????????????? | | ?????????????????????????????????????????????????? | | ?????????????????????????????????????????????????? | | ?????????????????????????????????????????????????? | | ?????????????????????????????????????????????????? | | ?????????????????????????????????????????????????? | | ?????????????????????????????????????????????????? | | ?????????????????????????????????????????????????? | | ??????????????????????????????????????"??????????? | | ??????????T???????????????????????????"??????????? | | ??????????????????????????????????????"??????????? | | ????????????????????????###???????????T??????????? | | ??????????????????????? ??? #?????"??????????? | | ??????????????????????""" """? ]#?????"??????????? | | ???????????????????# """" """" #?????"??????????? | | ???????????????????# """" """" ##???????????????? | | ???????????????????# """" """" +????????????????? | | ???????????????????# k #????????????????? | | ???????????????????# """" """" #????????????????? | | ???????????????????# """"@""""k #????????????????? | | ???????????????????# """" """"R #????????????????? | | ???????????????????# """"g"""" #????????????????? | | ???????????????????# gg #??????########### | | ???????????????????# [ pkk #??????# | | ??????????################+#/####??????# ! | | ??????????? + #?????????# | | ????????????? ! # #?????????# """""" | | ?????????????? """" # #?????????# """""" | | ?????????????? """" + #######???# """""" | | ?????????????? """" # # ??## """""" | | ???????????????"""" ]# # ?"# """""" | | ???????????????"""" # # "## [ """""" | | ???????????????"""" # # """ "## """""" | | ???????????????"""" # # """ T## """""" | | ??????????????? # # """ "## """""" | | ???????????????######### # "" "## | | ???????????????????????# # "" "## | | ?????"""T"""???????????# # ## | | ????????????????######## ###+#############+### | | ????????????????# % | | ????????????????# | | ????????????????# | | ????????????????+ | | ????????????????# % | +----------------------------------------------------+ Best States ------------- Heat Dissipation 48 Energy Generation 26 Energy Capacity 340 Matter Stores 300 Matter Capacity 300 Sight Range 16 Terrain Scan Density 10 Armor Coverage 225 Propulsion Shielding 33 Weapon Shielding 66 Evasion (%) 55 Target Analysis 5 Recoil Reduction 4 Offensive Hacking 10 Item Schematics ----------------- Combat Drone Bay | -7/Data Miner | Free Lgt. Regenerative Plating | -7/Data Miner | Free Thermal Defense Suite | -7/Data Miner | Free Imp. Lightning Gun | -7/Data Miner | Free Biomechanical Wings | -7/Data Miner | Free Lrn. Proton Cannon | -7/Data Miner | Free Med. Armored Exoskeleton | -7/Data Miner | Free Lrn. Tractor Beam | -7/Data Miner | Free Robot Schematics ------------------ H-66 Slayer | -7/Data Miner | Free A-15 Conveyor | -7/Data Miner | Free Y-54 Guardian | -7/Data Miner | Free Y-64 Sentinel | -7/Data Miner | Free G-50 Soldier | -7/Data Miner | Free R-10 Processor | -7/Data Miner | Free Fabricated ------------ Nothing Alien Tech Used ----------------- None Achievements -------------- None Challenges ------------ None Game ------ Seed ThiefHybridNanosword Manual? 0 Play Time 00:38:17 Cumulative 178.1 hours Start 2024.12.01 @ 21:48:26 End 2024.12.01 @ 22:25:07 Sessions 1 Manual Loads 0 Difficulty Rogue Special Mode None Game No. 160 Rogue 141 Adventurer 16 Explorer 3 Win Type - Total 15 Types 8/0/6/1/0/0/0/0/0 Lore% 47 Gallery% 73 Achievement% 67 Wizard Run 0 Options --------- Layout 2 ASCII 0 Keyboard 0 Movement Numpad Keybinds 1 Fullscreen 2 Font 24/Terminus Map View 50x44 Zoom Use 0% Tactical HUD 1 Map Filters NONE Filters NONE Steam 1 RUN: 6e52b71c-74d7-47d2-b3f7-a9d7e4b82b9d